[Event "98th Caplin Hastings Masters 2024-25"]
[Site "Hastings"]
[Date "2024.12.29"]
[Round "2.49"]
[White "Kim, Taewoo A"]
[Black "Lee, Jungsoo"]
[Result "1-0"]
[ECO "E70"]
[WhiteElo "1863"]
[BlackElo "1705"]
[Annotator "NA RC"]
[PlyCount "89"]
[EventDate "2024.12.23"]
[EventType "swiss"]
[EventCountry "ENG"]
[SourceTitle "playchess.com"]
[Source "ChessBase"]
[SourceQuality "1"]
[TimeControl "5400+30"]

1. d4 {[%emt 0:00:08]} Nf6 {[%emt 0:00:05]} 2. c4 {[%emt 0:00:10]} g6 {[%emt 0:00:06]} 3. Nc3 {[%emt 0:00:08]} Bg7 {[%emt 0:00:07]} 4. e4 {[%emt 0:00:43]} O-O {[%emt 0:00:05]} 5. Nge2 {[%emt 0:00:00]} c5 {[%emt 0:01:20]} 6. d5 {[%emt 0:00:38]} e6 {[%emt 0:00:17]} 7. Ng3 {[%emt 0:00:25]} exd5 {[%emt 0:00:14]} 8. cxd5 {[%emt 0:00:11]} d6 {[%emt 0:00:22]} 9. Be2 {[%emt 0:00:57]} Na6 {[%emt 0:01:00]} 10. O-O {[%emt 0:01:35]} Nc7 {[%emt 0:01:13]} 11. a4 {[%emt 0:00:55]} b6 {[%emt 0:00:34]} 12. Bg5 {[%emt 0:11:41]} h6 {[%emt 0:03:35]} 13. Be3 {[%emt 0:02:25]} a6 {[%emt 0:03:19]} 14. Qd2 {[%emt 0:11:24]} Kh7 {[%emt 0:00:34]} 15. f4 {[%emt 0:12:48]} Re8 {[%emt 0:02:59]} 16. Rae1 {[%emt 0:05:49]} Rb8 {[%emt 0:03:59]} 17. e5 {[%emt 0:14:30]} dxe5 {[%emt 0:01:12]} 18. d6 {[%emt 0:03:32]} Ne6 {[%emt 0:08:14]} 19. fxe5 {[%emt 0:12:08]} Nd7 {[%emt 0:00:18]} 20. Rxf7 {[%emt 0:01:46]} Nxe5 {[%emt 0:00:25]} 21. Rff1 {[%emt 0:03:58]} Nd4 {[%emt 0:04:44]} 22. Bxd4 {[%emt 0:03:49]} cxd4 {[%emt 0:00:13]} 23. Nce4 {[%emt 0:00:22]} b5 {[%emt 0:03:11]} 24. axb5 {[%emt 0:00:31]} axb5 {[%emt 0:01:49]} 25. Rc1 {[%emt 0:01:01]} Nc4 {[%emt 0:02:52]} 26. Bxc4 {[%emt 0:01:55]} bxc4 {[%emt 0:00:17]} 27. Rf7 {[%emt 0:00:49]} Rf8 {[%emt 0:21:15]} 28. Rxg7+ {[%emt 0:06:30]} Kxg7 {[%emt 0:00:35]} 29. Qxd4+ {[%emt 0:00:06]} Kh7 {[%emt 0:01:38]} 30. Rxc4 {[%emt 0:00:35]} Rb7 {[%emt 0:02:24]} 31. Nc5 {[%emt 0:02:38]} Rbf7 {[%emt 0:00:58]} 32. h3 {[%emt 0:00:47]} Rf4 {[%emt 0:05:40]} 33. Nce4 {[%emt 0:00:57]} R4f7 {[%emt 0:01:22]} 34. Kh2 {[%emt 0:00:50]} Be6 {[%emt 0:01:40]} 35. Ra4 {[%emt 0:00:30]} Rf4 {[%emt 0:07:11]} 36. Qe5 {[%emt 0:00:32]} Bd7 {[%emt 0:02:45]} 37. Ra7 {[%emt 0:00:33]} R4f7 {[%emt 0:02:50]} 38. Nc5 {[%emt 0:00:40]} Qc8 {[%emt 0:03:53]} 39. Nxd7 {[%emt 0:00:29]} Rxd7 {[%emt 0:00:30]} 40. Rxd7+ {[%emt 0:00:21]} Qxd7 {[%emt 0:00:10]} 41. Ne4 {[%emt 0:00:19]} Qf5 {[%emt 0:02:53]} 42. Qxf5 {[%emt 0:00:29]} gxf5 {[%emt 0:00:43]} 43. Nc5 {[%emt 0:00:15]} Rf6 {[%emt 0:03:04]} 44. d7 {[%emt 0:00:33]} Rd6 {[%emt 0:00:18]} 45. Ne6 {[%emt 0:00:24]} 1-0

[Event "98th Caplin Hastings Masters 2024-25"]
[Site "Hastings"]
[Date "2024.12.29"]
[Round "2.51"]
[White "Flynn, David"]
[Black "Raffin-Sumyk, Piermael"]
[Result "1-0"]
[ECO "C00"]
[WhiteElo "1834"]
[BlackElo "1512"]
[Annotator "NA RC"]
[PlyCount "109"]
[EventDate "2024.12.23"]
[EventType "swiss"]
[EventCountry "ENG"]
[SourceTitle "playchess.com"]
[Source "ChessBase"]
[SourceQuality "1"]
[TimeControl "5400+30"]

1. e4 {[%emt 0:04:40]} e6 {[%emt 0:00:08]} 2. d4 {[%emt 0:00:07]} d5 {[%emt 0:00:05]} 3. Bd3 {[%emt 0:00:04]} dxe4 {[%emt 0:00:13]} 4. Bxe4 {[%emt 0:00:04]} c5 {[%emt 0:00:18]} 5. Ne2 {[%emt 0:00:47]} Nf6 {[%emt 0:00:43]} 6. Bf3 {[%emt 0:00:05]} cxd4 {[%emt 0:02:24]} 7. Qxd4 {[%emt 0:00:05]} Qxd4 {[%emt 0:00:34]} 8. Nxd4 {[%emt 0:00:05]} a6 {[%emt 0:00:57]} 9. O-O {[%emt 0:09:59]} Bc5 {[%emt 0:02:31]} 10. Nb3 {[%emt 0:00:26]} Bb6 {[%emt 0:00:49]} 11. Nc3 {[%emt 0:05:56]} O-O {[%emt 0:04:26]} 12. Na4 {[%emt 0:06:04]} Bc7 {[%emt 0:02:46]} 13. Be3 {[%emt 0:04:52]} Nbd7 {[%emt 0:07:00]} 14. Nac5 {[%emt 0:07:38]} Rb8 {[%emt 0:05:17]} 15. Nxd7 {[%emt 0:08:15]} Bxd7 {[%emt 0:10:26]} 16. Ba7 {[%emt 0:04:16]} Ra8 {[%emt 0:04:20]} 17. Bc5 {[%emt 0:00:09]} Rfb8 {[%emt 0:01:36]} 18. Rfd1 {[%emt 0:04:50]} Bc6 {[%emt 0:03:42]} 19. Bxc6 {[%emt 0:05:02]} bxc6 {[%emt 0:00:08]} 20. Bd6 {[%emt 0:05:03]} Bxd6 {[%emt 0:02:09]} 21. Rxd6 {[%emt 0:00:06]} Rc8 {[%emt 0:00:09]} 22. Nc5 {[%emt 0:01:32]} Kf8 {[%emt 0:02:48]} 23. c4 {[%emt 0:06:54]} Ke7 {[%emt 0:05:17]} 24. Rad1 {[%emt 0:01:00]} Rab8 {[%emt 0:06:17]} 25. b3 {[%emt 0:02:38]} a5 {[%emt 0:01:18]} 26. Kf1 {[%emt 0:02:57]} Ra8 {[%emt 0:04:15]} 27. Ke2 {[%emt 0:09:22]} Ra7 {[%emt 0:00:28]} 28. R6d3 {[%emt 0:00:42]} Rcc7 {[%emt 0:02:17]} 29. Kd2 {[%emt 0:05:46]} Nd7 {[%emt 0:01:36]} 30. Nxd7 {[%emt 0:00:56]} Rxd7 {[%emt 0:00:06]} 31. Kc3 {[%emt 0:00:09]} Rxd3+ {[%emt 0:00:29]} 32. Rxd3 {[%emt 0:00:04]} c5 {[%emt 0:00:39]} 33. a3 {[%emt 0:01:11]} h6 {[%emt 0:01:37]} 34. Rd2 {[%emt 0:00:12]} Rb7 {[%emt 0:00:30]} 35. Rb2 {[%emt 0:00:14]} Kd6 {[%emt 0:00:27]} 36. b4 {[%emt 0:00:52]} axb4+ {[%emt 0:00:19]} 37. axb4 {[%emt 0:00:04]} Rxb4 {[%emt 0:01:28]} 38. Rxb4 {[%emt 0:00:05]} cxb4+ {[%emt 0:00:07]} 39. Kxb4 {[%emt 0:00:03]} Kc6 {[%emt 0:00:08]} 40. h4 {[%emt 0:00:29]} e5 {[%emt 0:00:13]} 41. h5 {[%emt 0:02:03]} f5 {[%emt 0:01:34]} 42. c5 {[%emt 0:01:56]} Kc7 {[%emt 0:04:42]} 43. Kb5 {[%emt 0:00:07]} e4 {[%emt 0:00:29]} 44. g3 {[%emt 0:00:15]} Kb7 {[%emt 0:01:34]} 45. c6+ {[%emt 0:00:04]} Kc7 {[%emt 0:00:03]} 46. Kc5 {[%emt 0:00:03]} Kd8 {[%emt 0:00:07]} 47. Kd6 {[%emt 0:00:29]} Kc8 {[%emt 0:00:05]} 48. c7 {[%emt 0:01:06]} g5 {[%emt 0:00:25]} 49. hxg6 {[%emt 0:00:06]} h5 {[%emt 0:00:10]} 50. g7 {[%emt 0:00:06]} f4 {[%emt 0:00:06]} 51. g8=Q+ {[%emt 0:00:08]} Kb7 {[%emt 0:00:06]} 52. Qb8+ {[%emt 0:00:08]} Ka6 {[%emt 0:00:10]} 53. c8=Q+ {[%emt 0:00:23]} Ka5 {[%emt 0:00:16]} 54. Qc5+ {[%emt 0:00:17]} Ka4 {[%emt 0:00:07]} 55. Qcb4# {[%emt 0:00:34]} 1-0

[Event "98th Caplin Hastings Masters 2024-25"]
[Site "Hastings"]
[Date "2024.12.29"]
[Round "3.1"]
[White "Boyer, Mahel"]
[Black "Kaasen, Tor Fredrik"]
[Result "1-0"]
[ECO "B81"]
[WhiteElo "2526"]
[BlackElo "2473"]
[Annotator "TA"]
[PlyCount "89"]
[EventDate "2024.12.23"]
[EventType "swiss"]
[EventCountry "ENG"]
[SourceTitle "playchess.com"]
[Source "ChessBase"]
[SourceQuality "1"]
[TimeControl "5400+30"]

{[%evp 27,89,-22,-19,-9,-11,-32,-27,-33,-24,-52,-46,-60,-41,-79,-77,-83,-32,-70,-77,-86,-85,-113,-44,-41,-18,-10,-22,-18,20,13,10,13,119,117,168,168,162,157,157,157,187,190,199,199,820,722,921,466,670,600,344,202,202,202,29964,29964,29971,29972,29974,29975,29975,29976,29979,29980]} 1. e4 {[%emt 0:08:48]} c5 {[%emt 0:02:11]} 2. Nf3 {[%emt 0:00:17]} d6 {[%emt 0:01:00]} 3. d4 {[%emt 0:00:09]} cxd4 {[%emt 0:00:12]} 4. Nxd4 {[%emt 0:00:04]} Nf6 {[%emt 0:00:09]} 5. Nc3 {[%emt 0:00:11]} a6 {[%emt 0:00:27]} 6. h3 {[%emt 0:01:08]} e6 {[%emt 0:00:42]} 7. g4 {[%emt 0:00:55]} b5 {[%emt 0:01:18]} 8. g5 {[%emt 0:03:04]} Nfd7 {[%emt 0:00:18]} 9. Be3 {[%emt 0:04:03]} b4 {[%emt 0:04:13]} 10. Na4 {[%emt 0:03:56]} Bb7 {[%emt 0:01:08]} 11. Bg2 {[%emt 0:00:06]} Be7 {[%emt 0:02:42]} 12. f4 {[%emt 0:04:40]} O-O {[%emt 0:06:11]} 13. O-O {[%emt 0:02:20]} Nc6 {[%emt 0:02:38]} 14. b3 {[%emt 0:24:26]} Nxd4 {[%emt 0:04:29]} 15. Qxd4 {[%emt 0:00:36]} a5 {[%emt 0:00:33]} 16. Rad1 {[%emt 0:10:50]} Bc6 {[%emt 0:07:17]} 17. Nb2 {[%emt 0:14:08]} e5 {[%emt 0:03:08]} 18. Qd2 {[%emt 0:02:06]} exf4 {[%emt 0:07:16]} 19. Bxf4 {[%emt 0:00:13]} Ne5 {[%emt 0:01:45]} 20. h4 {[%emt 0:04:40]} Bb5 {[%emt 0:03:54]} 21. Rf2 {[%emt 0:00:25]} Re8 {[%emt 0:09:29]} (21... Qc8 $17) 22. Qd5 {[%emt 0:03:47]} Qb6 $1 {[%emt 0:02:59]} (22... Bc6 23. Qd4) 23. Bg3 {[%emt 0:03:41]} Rac8 {[%emt 0:05:02]} 24. Rdd2 {[%emt 0:05:13]} Bc6 {[%emt 0:09:25]} ({Better is} 24... Kh8 $17 25. Nd1 Bc6) 25. Qd4 $15 {[%emt 0:00:39]} Bd8 {[%emt 0:04:20]} 26. Nc4 {[%emt 0:02:34]} Qxd4 {[%emt 0:01:06]} 27. Rxd4 {[%emt 0:00:01]} Nxc4 {[%emt 0:00:09]} 28. Rxc4 {[%emt 0:00:04]} Bb6 {[%emt 0:00:18]} (28... Bb7 {simplifies} 29. Rxc8 Bxc8 30. Rd2 f6) 29. Bh3 $1 {[%emt 0:00:12]} (29. Bxd6 $2 Bb5 (29... Bxf2+ $2 30. Kxf2 Bb5 31. Rc7 $19) 30. Rxc8 Rxc8 $19 (30... Bxf2+ $2 31. Kxf2 Rxc8 32. Ke3 $19)) 29... Bb7 {[%emt 0:17:00]} (29... Bxf2+ $6 30. Kxf2 f5 31. gxf6 $16 (31. Bxd6 $2 Bxe4 32. Bf1 Bxc2 $19) (31. Bxf5 d5 $16)) (29... Bc5 $1 $11 30. Bxc8 Rxc8) 30. Bxc8 $16 {[%emt 0:00:06]} Rxc8 {[%emt 0:00:04]} (30... Bxc8 $16 {might work better.} 31. Bxd6 Ba6) 31. Rxc8+ $18 {[%emt 0:00:32]} Bxc8 {[%emt 0:00:03]} 32. Kg2 {[%emt 0:01:18]} ({Don't take} 32. Bxd6 $6 Bb7 $14) 32... Bxf2 {[%emt 0:02:39]} 33. Kxf2 {[%emt 0:00:04]} d5 {[%emt 0:00:11]} 34. Bc7 {[%emt 0:01:43]} a4 {[%emt 0:02:42]} 35. exd5 {[%emt 0:00:28]} Kf8 $2 {[%emt 0:00:31]} (35... Bf5 36. bxa4 Bxc2) 36. Bd6+ $18 {[%emt 0:00:15]} (36. bxa4 Bb7 37. d6 Ke8 $18) 36... Ke8 {[%emt 0:00:02]} 37. Bxb4 {[%emt 0:00:14]} (37. bxa4 Bb7 38. Ke3 (38. Bxb4 Bxd5 39. Ke3 Bxa2 $16) 38... Bxd5 39. Bxb4 Bxa2 $16) 37... Bf5 {[%emt 0:00:04]} 38. c4 {[%emt 0:01:02]} (38. bxa4 Bxc2 39. a5 Be4 $18) 38... Bb1 {[%emt 0:00:25]} 39. c5 {[%emt 0:00:31]} ({Not} 39. bxa4 Bxa2 40. Ke3 Bxc4 $18) (39. Ke3 $142 Bxa2 40. Kd4 (40. bxa4 Bxc4 41. Kd4 Be2 $18) 40... axb3 41. Bc3 (41. Ba3 f5 $18)) 39... axb3 $18 {[%emt 0:01:26]} 40. axb3 {[%emt 0:00:04]} Bc2 $2 {[%emt 0:00:03]} (40... Be4 $18 41. d6 Bd5) 41. Ke3 {[%emt 0:00:32]} Bxb3 {[%emt 0:00:19]} 42. Kd4 {[%emt 0:00:03]} f6 {[%emt 0:01:05]} 43. gxf6 {[%emt 0:00:17]} gxf6 {[%emt 0:00:01]} 44. c6 {[%emt 0:00:10]} f5 {[%emt 0:00:57]} 45. d6 {[%emt 0:00:37]} 1-0

[Event "98th Caplin Hastings Masters 2024-25"]
[Site "Hastings"]
[Date "2024.12.29"]
[Round "3.2"]
[White "Ghazarian, Kirk"]
[Black "Vestby-Ellingsen, Mads"]
[Result "1/2-1/2"]
[ECO "D30"]
[WhiteElo "2501"]
[BlackElo "2383"]
[Annotator "TA"]
[PlyCount "120"]
[EventDate "2024.12.23"]
[EventType "swiss"]
[EventCountry "ENG"]
[SourceTitle "playchess.com"]
[Source "ChessBase"]
[SourceQuality "1"]
[TimeControl "5400+30"]

{[%evp 26,120,0,-5,-7,-28,-24,-37,-12,-7,-8,-27,-35,-25,-11,-18,-27,-16,-16,-16,-17,-17,-17,-16,-5,-5,0,-32,-27,-38,-20,-58,0,0,0,0,0,0,0,0,0,0,4,8,18,0,0,0,0,0,0,0,0,0,0,0,1,0,0,0,0,0,0,0,0,0,0,0,0,0,0,0,0,0,0,0,0,0,0,0,0,0,0,0,0,0,0,0,0,0,0,0,0,0,0,0,0]} 1. c4 {[%emt 0:00:03]} e6 {[%emt 0:02:01]} 2. g3 {[%emt 0:00:26]} d5 {[%emt 0:00:19]} 3. Bg2 {[%emt 0:00:05]} Nf6 {[%emt 0:00:22]} 4. Nf3 {[%emt 0:00:04]} Be7 {[%emt 0:02:14]} 5. O-O {[%emt 0:00:19]} O-O {[%emt 0:00:12]} 6. d4 {[%emt 0:00:06]} dxc4 {[%emt 0:01:08]} 7. Qc2 {[%emt 0:00:07]} c6 {[%emt 0:02:54]} 8. Qxc4 {[%emt 0:00:51]} b5 {[%emt 0:00:12]} 9. Qc2 {[%emt 0:04:32]} Bb7 {[%emt 0:00:17]} 10. Rd1 {[%emt 0:00:04] D30: Queen's Gambit Declined: Systems without Nc3.} Nbd7 {[%emt 0:01:52]} 11. Ne5 {[%emt 0:00:05]} Nxe5 {[%emt 0:05:17]} 12. dxe5 {[%emt 0:00:01]} Nd5 {[%emt 0:01:51]} 13. Nc3 {[%emt 0:00:11]} Qb8 {[%emt 0:11:24]} 14. Nxd5 {[%emt 0:07:03]} cxd5 {[%emt 0:01:17]} 15. Be3 $146 {[%emt 0:00:12]} ({Predecessor:} 15. f4 Rc8 16. Qd3 b4 17. Be3 a5 18. Bd4 Ba6 19. Qd2 b3 20. axb3 Qxb3 21. Qxa5 Bxe2 22. Qxa8 Qxd1+ 23. Rxd1 Rxa8 {½-½ Bluebaum,M (2655)-Erdos,V (2552) AUT-chT 2324 2023 (11.2)}) 15... Rc8 {[%emt 0:02:31]} 16. Qb3 {[%emt 0:01:25]} b4 {[%emt 0:06:19]} 17. Bd4 {[%emt 0:05:21]} a5 {[%emt 0:03:55]} 18. e4 {[%emt 0:03:52]} dxe4 {[%emt 0:00:57]} 19. Qe3 {[%emt 0:00:08]} Bd5 {[%emt 0:03:03]} 20. Bxe4 {[%emt 0:00:21]} Qb7 {[%emt 0:00:14]} 21. Bxd5 {[%emt 0:02:21]} Qxd5 {[%emt 0:05:56]} 22. Bb6 {[%emt 0:00:28]} Qb7 {[%emt 0:07:52]} 23. Rac1 {[%emt 0:04:21]} h6 {[%emt 0:19:13]} 24. h4 {[%emt 0:11:22]} Rxc1 {[%emt 0:02:34]} 25. Rxc1 {[%emt 0:00:05]} Qd5 {[%emt 0:00:09]} 26. a4 {[%emt 0:16:41]} bxa3 {[%emt 0:00:38]} 27. bxa3 {[%emt 0:00:08]} Rb8 {[%emt 0:03:12]} 28. a4 {[%emt 0:10:16]} Bb4 {[%emt 0:04:18]} (28... g5 $15 29. Kh2 Kh7 (29... gxh4 30. gxh4 Rxb6 31. Qxb6 $14)) 29. Qd4 $11 {[%emt 0:04:41]} Qxd4 {[%emt 0:05:58]} 30. Bxd4 {[%emt 0:00:10]} Ba3 {[%emt 0:02:48]} 31. Rc4 {[%emt 0:01:54]} Rb1+ {[%emt 0:00:41]} 32. Kg2 {[%emt 0:00:09]} Bb4 {[%emt 0:00:07]} 33. h5 {[%emt 0:04:19]} Rb3 {[%emt 0:00:40]} 34. Bc5 {[%emt 0:01:02]} Kh7 {[%emt 0:01:04]} 35. Bd6 {[%emt 0:03:52]} Ra3 {[%emt 0:02:48]} 36. Rc7 {[%emt 0:04:19]} Rxa4 {[%emt 0:00:10]} 37. Rxf7 {[%emt 0:00:19]} Bxd6 {[%emt 0:00:08]} 38. exd6 {[%emt 0:00:02]} Rd4 {[%emt 0:00:09]} 39. Ra7 {[%emt 0:03:19]} Rxd6 {[%emt 0:00:08]} 40. Rxa5 {[%emt 0:00:02]} Rd7 {[%emt 0:01:27]} 41. Ra8 {[%emt 0:00:22]} Re7 {[%emt 0:02:05]} 42. Kh3 {[%emt 0:00:35]} g6 {[%emt 0:00:09]} 43. Kg4 {[%emt 0:00:13]} Kg7 {[%emt 0:00:40]} 44. Rc8 {[%emt 0:01:36]} gxh5+ {[%emt 0:00:29]} 45. Kxh5 {[%emt 0:00:03]} Rf7 {[%emt 0:00:10]} 46. Rc2 {[%emt 0:00:36]} Rf5+ {[%emt 0:00:09]} 47. Kg4 {[%emt 0:00:08]} Kg6 {[%emt 0:00:19]} 48. f4 {[%emt 0:00:18]} Ra5 {[%emt 0:00:40]} 49. Rc6 {[%emt 0:00:21]} Kf6 {[%emt 0:00:09]} 50. Kh4 {[%emt 0:00:16]} Ra4 {[%emt 0:01:34]} 51. Rc5 {[%emt 0:00:43]} Ra3 {[%emt 0:00:44]} 52. Kg4 {[%emt 0:00:16]} Rb3 {[%emt 0:00:09]} 53. Rh5 {[%emt 0:00:18]} Kg6 {[%emt 0:00:07]} 54. Ra5 {[%emt 0:00:06]} Kf6 {[%emt 0:00:13]} 55. Ra8 {[%emt 0:00:09]} Rb5 {[%emt 0:00:21]} 56. Ra2 {[%emt 0:00:39]} Rc5 {[%emt 0:00:28]} 57. Rh2 {[%emt 0:00:24]} Kg6 {[%emt 0:00:08]} 58. Re2 {[%emt 0:00:45]} Kf6 {[%emt 0:00:10]} 59. Rd2 {[%emt 0:00:32]} Ra5 {[%emt 0:00:14]} 60. Rd6 {[%emt 0:00:39]} Rb5 {[%emt 0:00:20]} 1/2-1/2

[Event "98th Caplin Hastings Masters 2024-25"]
[Site "Hastings"]
[Date "2024.12.29"]
[Round "3.3"]
[White "Gormally, Daniel W"]
[Black "Seo, Jung Min"]
[Result "1/2-1/2"]
[ECO "D38"]
[WhiteElo "2424"]
[BlackElo "2491"]
[Annotator "TA"]
[PlyCount "51"]
[EventDate "2024.12.23"]
[EventType "swiss"]
[EventCountry "ENG"]
[SourceTitle "playchess.com"]
[Source "ChessBase"]
[SourceQuality "1"]
[TimeControl "5400+30"]

{[%evp 19,51,0,6,0,0,0,0,21,20,0,23,25,26,30,33,20,32,32,33,32,26,34,38,37,31,26,39,23,16,21,31,18,26,14]} 1. d4 {[%emt 0:00:02]} Nf6 {[%emt 0:00:03]} 2. c4 {[%emt 0:00:05]} e6 {[%emt 0:00:01]} 3. Nf3 {[%emt 0:00:56]} d5 {[%emt 0:00:09]} 4. Nc3 {[%emt 0:00:22]} Bb4 {[%emt 0:00:55]} 5. cxd5 {[%emt 0:01:43]} exd5 {[%emt 0:00:06]} 6. Qa4+ {[%emt 0:01:13]} Nc6 {[%emt 0:00:08]} 7. Bg5 {[%emt 0:00:06]} h6 {[%emt 0:04:41]} 8. Bxf6 {[%emt 0:00:09]} Qxf6 {[%emt 0:00:03]} 9. e3 {[%emt 0:00:14]} O-O {[%emt 0:00:15]} 10. Be2 {[%emt 0:00:03]} Rd8 {[%emt 0:03:48]} 11. O-O {[%emt 0:00:21]} Bf8 {[%emt 0:05:39]} 12. Rfc1 {[%emt 0:01:23]} Be6 {[%emt 0:03:13]} 13. Qd1 {[%emt 0:02:36]} Ne7 {[%emt 0:03:36]} 14. Na4 {[%emt 0:04:24]} c6 {[%emt 0:00:48]} 15. Nc5 {[%emt 0:00:06]} Rab8 {[%emt 0:00:54]} 16. b4 {[%emt 0:04:49]} Bf5 {[%emt 0:02:15]} 17. Ne5 {[%emt 0:05:51]} Ng6 {[%emt 0:01:44]} 18. Nxg6 {[%emt 0:02:03]} Qxg6 {[%emt 0:01:33]} 19. Bd3 {[%emt 0:04:39]} Bxc5 {[%emt 0:09:48]} 20. Bxf5 {[%emt 0:00:08]} Qxf5 {[%emt 0:00:02]} 21. Rxc5 {[%emt 0:01:00]} a6 {[%emt 0:00:53]} 22. a4 {[%emt 0:00:39]} Rd6 {[%emt 0:00:20]} 23. Qc2 {[%emt 0:02:54]} Qxc2 {[%emt 0:06:15]} 24. Rxc2 {[%emt 0:00:07]} Ra8 {[%emt 0:00:05]} 25. g3 {[%emt 0:02:55]} Kf8 {[%emt 0:00:13]} 26. Rac1 {[%emt 0:01:47]} 1/2-1/2

[Event "98th Caplin Hastings Masters 2024-25"]
[Site "Hastings"]
[Date "2024.12.29"]
[Round "3.4"]
[White "Golding, Alex"]
[Black "Laurent-Paoli, Pierre"]
[Result "0-1"]
[ECO "B45"]
[WhiteElo "2405"]
[BlackElo "2559"]
[Annotator "TA"]
[PlyCount "62"]
[EventDate "2024.12.23"]
[EventType "swiss"]
[EventCountry "ENG"]
[SourceTitle "playchess.com"]
[Source "ChessBase"]
[SourceQuality "1"]
[TimeControl "5400+30"]

{[%evp 16,62,27,33,58,66,68,17,34,0,0,0,0,0,3,-49,-23,-151,-159,-147,-153,-200,-187,-207,-173,-402,-225,-258,-131,-109,-101,-429,-431,-29985,-29986,-29987,-29988,-29991,-29992,-29992,-29993,-29993,-29994,-29994,-29995,-29995,-29996,-29996,-843]} 1. e4 {[%emt 0:04:36]} c5 {[%emt 0:03:47]} 2. Nf3 {[%emt 0:00:19]} Nc6 {[%emt 0:00:11]} 3. Nc3 {[%emt 0:00:49]} e6 {[%emt 0:01:31]} 4. d4 {[%emt 0:00:17]} cxd4 {[%emt 0:00:05]} 5. Nxd4 {[%emt 0:00:04]} Nf6 {[%emt 0:00:07]} 6. Nxc6 {[%emt 0:01:01]} bxc6 {[%emt 0:00:44]} 7. e5 {[%emt 0:01:18]} Nd5 {[%emt 0:00:06]} 8. Ne4 {[%emt 0:02:42]} Qc7 {[%emt 0:00:17]} 9. f4 $1 {[%emt 0:00:18]} Rb8 {[%emt 0:01:38]} 10. c4 $1 {[%emt 0:04:27]} Bb4+ {[%emt 0:00:08]} 11. Kf2 {[%emt 0:00:31]} (11. Ke2 $14) 11... f5 $11 {[%emt 0:20:40]} 12. cxd5 {[%emt 0:04:21]} fxe4 {[%emt 0:03:11]} 13. d6 {[%emt 0:07:00]} Qa5 {[%emt 0:10:59]} (13... Bc5+ 14. Kg3 Qa5 15. Bd2 $14) 14. Kg3 {[%emt 0:04:43]} O-O {[%emt 0:07:34][%cal Og7g5]} 15. Bc4 {[%emt 0:00:55]} ({White should play} 15. Kh3 $11) 15... Bc3 {[%emt 0:24:32] and ...Rxb2 would now be decisive} 16. Rf1 {[%emt 0:10:33]} (16. bxc3 $2 Qxc3+ 17. Kg4 Qxa1 $19) (16. Qe2 $1 $11 {remains equal.} Bxe5 17. fxe5 Qxe5+ 18. Kh3) 16... Bxb2 $17 {[%emt 0:03:16]} 17. Bxb2 {[%emt 0:00:09]} Rxb2 {[%emt 0:00:03]} 18. Qd4 {[%emt 0:01:28] Wards off Qc3+} (18. Qc1 $17 Rd2 19. h4) 18... Qa3+ $19 {[%emt 0:02:21]} 19. Bb3 {[%emt 0:00:25]} Ba6 {[%emt 0:02:19]} 20. Rfc1 $2 {[%emt 0:12:10]} (20. Rfb1 {was necessary.} Rxb1 21. Rxb1) 20... Bd3 {[%emt 0:02:11]} (20... g5 $142 21. fxg5 Rff2) 21. Rc3 {[%emt 0:03:10][%cal Ob3e6] [#]} Qa6 {[%emt 0:00:22]} (21... Rxg2+ $1 $19 22. Kxg2 Qb2+ (22... Rxf4 $2 23. Bxe6+ dxe6 24. Rxa3 $18) 23. Bc2 c5 (23... Qxa1 24. Rxd3 Qc1 25. Rd2 $14) (23... Bxc2 24. Rc4 $11) 24. Qxc5 Qxa1 25. Bxd3 exd3) 22. Rac1 {[%emt 0:07:15][%cal Oc3c6] [#] Hoping for Rxc6!.} Qb6 $1 {[%emt 0:02:41] Dancing on a razor blade. Black is more active.} 23. Rc5 $2 {[%emt 0:00:24][%mdl 8192]} (23. Rxd3 $2 exd3 24. Qxb6 (24. Qxb2 Qe3+ 25. Kg4 Rxf4+ 26. Kh5 Rf5+ 27. Kh4 Qf4+ 28. g4 Rh5+ 29. Kxh5 Qh6#) 24... axb6 $19) (23. Qxb6 $17 {nothing else works.} axb6 24. h4 (24. Bc2 $2 Rb4 $17)) 23... Re2 {[%emt 0:00:48]} 24. Bc4 {[%emt 0:02:01]} (24. Rf1 $19 Rxa2 25. Bxa2 Bxf1 26. h4) 24... Qd8 {[%emt 0:06:54]} 25. Bxe6+ {[%emt 0:00:34]} dxe6 {[%emt 0:00:19]} 26. Rxc6 {[%emt 0:00:05]} Qe8 {[%emt 0:00:59]} ({Inferior is} 26... Rxa2 27. Rc8 Qd7 (27... Qxc8 $2 28. Rxc8 Rxc8 29. d7 $18) 28. R1c7 $11) 27. Rc8 {[%emt 0:04:17]} Qg6+ {[%emt 0:00:05]} (27... Qxc8 $2 {is the wrong capture.} 28. Rxc8 Rxc8 29. d7 $18) 28. Kh4 {[%emt 0:00:05]} Qh6+ {[%emt 0:00:12]} 29. Kg3 {[%emt 0:00:06]} Qxf4+ {[%emt 0:00:07]} 30. Kh3 {[%emt 0:00:07]} Qh6+ {[%emt 0:00:55]} 31. Kg3 {[%emt 0:00:17]} Qg5+ {[%emt 0:00:06]} 0-1